bitfinex-derivatives/quotes_SOLF0:USTF0_20240904
["timestamp","ask_amount","ask_price","bid_price","bid_amount"]
[1725420194306,3.91784882,127.57,127.54,3.9206]
[1725420194505,0.05896451,127.59,127.52,2.8434]
[1725420194812,0.0564198,127.57,127.52,2.8434]
[1725420195208,0.0564198,127.57,127.55,3.9204]
[1725420196209,0.0564198,127.57,127.55,24.07]
[1725420197016,0.0564198,127.57,127.56,3.9203]
[1725420198108,0.0564198,127.57,127.55,3.9204]
[1725420199815,3.9764198,127.57,127.5,24.07]
[1725420200015,0.05993327,127.55,127.5,24.07]
[1725420201223,0.05993327,127.55,127.53,3.9209]
[1725420201421,0.05993327,127.55,127.5,24.07]
[1725420203331,3.98073327,127.55,127.52,3.9215]
[1725420204024,0.05993327,127.55,127.53,3.921]
[1725420204222,0.05993327,127.55,127.52,24.07]
[1725420204622,0.05993327,127.55,127.54,3.9209]
[1725420204922,0.05993327,127.55,127.54,27.9909]
[1725420205112,3.91759416,127.59,127.56,3.9201]
[1725420205319,3.9193,127.6,127.55,24.07]
[1725420205522,3.8893649,127.59,127.55,24.07]
[1725420205818,3.8893649,127.59,127.56,3.9202]
[1725420206216,3.94882057,127.59,127.56,3.97036905]
[1725420206612,3.94882057,127.59,127.56,0.05016905]
[1725420207420,0.05945567,127.59,127.57,24.07]
[1725420208525,0.05945567,127.59,127.58,3.9196]
[1725420213229,3.9178,127.64,127.61,3.9186]
[1725420214327,3.97260719,127.64,127.61,3.97344919]
[1725420214523,0.05480719,127.64,127.61,0.05484919]
[1725420215329,0.05480719,127.64,127.63,3.9181]
[1725420224348,0.05480719,127.64,127.61,0.05484919]
[1725420224836,0.05480719,127.64,127.62,3.9182]
[1725420226633,0.05480719,127.64,127.61,0.05484919]
[1725420226838,3.9183,127.63,127.61,0.05484919]
[1725420231434,7.74850296,127.62,127.61,0.05484919]
[1725420231741,3.9184,127.62,127.61,0.05484919]
[1725420231942,13.5484,127.62,127.61,0.05484919]
[1725420232132,17.51408876,127.62,127.61,0.05484919]
[1725420237936,18.91048876,127.62,127.61,0.05484919]
[1725420242346,9.28048876,127.62,127.61,0.05484919]
[1725420244446,18.91048876,127.62,127.61,0.05484919]
[1725420245353,0.05480719,127.64,127.61,0.05484919]
[1725420245762,0.05480719,127.64,127.61,9.68484919]
[1725420246149,0.05480719,127.64,127.63,13.5481]
[1725420246558,0.05480719,127.64,127.63,17.46071692]
[1725420246755,11.9044,127.72,127.63,13.54261692]
[1725420247058,1.3488,127.72,127.68,9.63]
[1725420247261,10.88952718,127.74,127.68,9.63]
[1725420247857,0.05314995,127.72,127.7,0.0567997]
[1725420248259,0.05314995,127.72,127.7,3.9724997]
[1725420248960,0.05314995,127.72,127.71,3.9157]
[1725420252163,0.05314995,127.72,127.7,3.9724997]
[1725420252362,0.05314995,127.72,127.7,0.0567997]
[1725420252959,3.96854995,127.72,127.7,0.0567997]
[1725420254562,0.05314995,127.72,127.7,0.0567997]
[1725420254959,0.05314995,127.72,127.7,3.9725997]
[1725420255669,0.05314995,127.72,127.71,3.9157]
[1725420256367,3.9142,127.76,127.72,3.9151]
[1725420256562,7.87395698,127.76,127.72,3.9151]
[1725420257367,0.05484078,127.75,127.74,3.9147]
[1725420257564,0.05484078,127.75,127.73,0.05482781]
[1725420257967,0.05484078,127.75,127.73,3.96972781]
[1725420258163,0.05484078,127.75,127.73,0.05482781]
[1725420258471,24.13484078,127.75,127.73,0.05482781]
[1725420259071,3.9147,127.74,127.73,0.05482781]
[1725420259471,24.13484078,127.75,127.73,0.05482781]
[1725420259772,28.04944078,127.75,127.73,0.05482781]
[1725420261375,3.9147,127.74,127.73,0.05482781]
[1725420268280,3.96944078,127.75,127.73,0.05482781]
[1725420270176,0.05484078,127.75,127.73,3.96972781]
[1725420270983,0.05484078,127.75,127.74,3.9147]
[1725420276387,0.05484078,127.75,127.73,0.05482781]
[1725420277890,0.05484078,127.75,127.74,3.9147]
[1725420294005,10.6696,127.82,127.78,3.9133]
[1725420294006,2.8256,127.82,127.78,3.9133]
[1725420294416,2.8256,127.82,127.77,9.62]
[1725420294907,6.7381,127.82,127.79,3.9132]
[1725420295114,0.05730203,127.81,127.79,3.9132]
[1725420297109,3.96990203,127.81,127.78,3.96335776]
[1725420297313,0.05730203,127.81,127.78,0.04995776]
[1725420298310,0.05730203,127.81,127.79,3.9132]
[1725420300120,3.96990203,127.81,127.78,3.96335776]
[1725420300517,3.96990203,127.81,127.79,3.9132]
[1725420300715,3.96990203,127.81,127.78,0.04995776]
[1725420300716,0.05730203,127.81,127.78,0.04995776]
[1725420301117,0.05730203,127.81,127.8,3.9129]
[1725420301316,0.05730203,127.81,127.8,13.5329]
[1725420301822,0.05730203,127.81,127.8,17.47578544]
[1725420302616,3.9109,127.87,127.83,3.9117]
[1725420302823,7.91561314,127.87,127.83,3.9117]
[1725420303417,9.62,127.85,127.79,2.7964]
[1725420303613,0.05788896,127.83,127.81,0.05812526]
[1725420304024,0.05788896,127.83,127.81,9.67812526]
[1725420305421,0.05788896,127.83,127.82,3.9123]
[1725420309627,0.05788896,127.83,127.81,0.05812526]
[1725420310026,3.9123,127.82,127.81,0.05812526]
[1725420315230,3.913,127.8,127.77,3.9138]
[1725420315530,24.04,127.8,127.72,4.00705428]
[1725420315732,3.9137,127.78,127.75,3.9143]
[1725420315933,24.04,127.8,127.75,3.9143]
[1725420316233,3.97011692,127.79,127.76,0.05290395]
[1725420316436,3.89301721,127.78,127.76,0.05290395]
[1725420317325,3.89301721,127.78,127.76,3.96700395]
[1725420317729,3.97011692,127.79,127.76,3.96700395]
[1725420318235,0.05671692,127.79,127.76,0.05290395]
[1725420318436,0.05671692,127.79,127.76,24.09290395]
[1725420318636,0.05671692,127.79,127.77,3.9138]
[1725420319433,0.05671692,127.79,127.78,3.9135]
[1725420320628,5.19172676,127.85,127.82,3.9121]
[1725420320834,1.36,127.85,127.82,3.9121]
[1725420321030,3.86414723,127.86,127.82,24.04]
[1725420321534,3.9108,127.87,127.82,24.04]
[1725420321736,3.9108,127.87,127.83,0.05072368]
[1725420321936,0.0513072,127.86,127.83,0.05072368]
[1725420322535,0.0513072,127.86,127.83,3.96262368]
[1725420322739,0.0513072,127.86,127.83,0.05072368]
[1725420322939,1.4525072,127.86,127.83,0.05072368]
[1725420323435,2.8359,127.85,127.83,0.05072368]
[1725420323633,3.9117,127.84,127.83,0.05072368]
[1725420328443,2.8359,127.85,127.83,0.05072368]
[1725420328656,1.4525072,127.86,127.83,0.05072368]
[1725420329544,3.9116,127.85,127.83,0.05072368]
[1725420336052,5.3637072,127.86,127.83,3.96272368]
[1725420336643,5.3637072,127.86,127.83,0.05072368]
[1725420337147,3.9115,127.85,127.83,0.05072368]
[1725420337453,1.4525072,127.86,127.83,0.05072368]
[1725420337858,3.9117,127.84,127.83,0.05072368]
[1725420341353,3.913,127.8,127.73,3.5065]
[1725420341547,3.913,127.8,127.74,24.04]
[1725420341752,24.04,127.84,127.74,24.04]
[1725420341953,3.9128,127.81,127.74,24.04]
[1725420342461,0.05527735,127.79,127.77,3.9135]
[1725420342664,0.05527735,127.79,127.76,24.09516869]
[1725420343156,0.05527735,127.79,127.78,3.9135]
[1725420343959,0.05527735,127.79,127.77,3.9137]
[1725420349362,0.05527735,127.79,127.78,3.9135]
[1725420350760,1.4012,127.86,127.82,3.912]
[1725420350966,3.9117,127.85,127.8,24.04]
[1725420351359,3.9117,127.85,127.82,3.9121]
[1725420351961,3.96795184,127.85,127.82,3.97100679]
[1725420353068,0.05625184,127.85,127.83,3.912]
[1725420355366,0.05625184,127.85,127.82,24.09890679]
[1725420356363,0.05625184,127.85,127.84,3.9117]
[1725420362276,0.05625184,127.85,127.84,27.9517]
[1725420366073,0.05625184,127.85,127.84,13.5217]
[1725420366476,0.05625184,127.85,127.84,3.9117]
[1725420366778,0.05625184,127.85,127.82,0.05890679]
[1725420367477,0.05625184,127.85,127.82,9.66890679]
[1725420368079,0.05625184,127.85,127.83,3.9118]
[1725420368479,0.05625184,127.85,127.82,0.05890679]
[1725420368675,0.05625184,127.85,127.83,3.9117]
[1725420369078,0.05625184,127.85,127.82,0.05890679]
[1725420369474,0.05625184,127.85,127.83,3.9117]
[1725420370782,3.96765184,127.85,127.82,3.97110679]
[1725420371481,0.05625184,127.85,127.82,3.97110679]
[1725420373174,0.05625184,127.85,127.83,24.03]
[1725420373374,0.05625184,127.85,127.84,24.03]
[1725420374087,0.05625184,127.85,127.84,27.9417]
[1725420375474,1.4537,127.9,127.88,3.9103]
[1725420375674,3.82036041,127.91,127.88,3.9103]
[1725420375884,3.82036041,127.91,127.87,24.03]
[1725420376084,3.9099,127.9,127.85,24.03]
[1725420376280,24.03,127.93,127.85,24.03]
[1725420376480,3.9102,127.89,127.85,24.03]
[1725420376680,0.05117632,127.88,127.86,0.05715681]
[1725420377483,3.86480547,127.88,127.86,0.05715681]
[1725420378388,3.9108,127.87,127.86,0.05715681]
[1725420378887,3.86480547,127.88,127.86,0.05715681]
[1725420379482,0.05117632,127.88,127.86,3.96805681]
[1725420379681,0.05117632,127.88,127.86,0.05715681]
[1725420379887,0.05117632,127.88,127.87,27.9408]
[1725420382092,3.909,127.93,127.9,3.9097]
[1725420382590,1.3437,127.94,127.89,24.03]
[1725420383185,0.05258193,127.93,127.91,3.9094]
[1725420383385,0.05258193,127.93,127.9,24.08174836]
[1725420383582,2.7322,127.97,127.9,24.08174836]
[1725420383583,5.35024499,127.98,127.92,24.03]
[1725420384191,5.35024499,127.98,127.93,3.82208675]
[1725420384793,0.05752508,127.97,127.94,0.05237248]
[1725420385593,0.05752508,127.97,127.95,3.9083]
[1725420386095,0.05752508,127.97,127.94,3.96087248]
[1725420389896,26.80172508,127.97,127.88,24.03]
[1725420390096,2.7142,127.97,127.88,24.03]
[1725420390297,6.53415669,127.97,127.9,24.03]
[1725420390496,1.381,127.97,127.92,24.03]
[1725420390694,5.25138387,127.97,127.92,24.03]
[1725420390998,0.05680226,127.96,127.93,0.05986524]
[1725420392903,3.9086,127.95,127.93,0.05986524]
[1725420393102,0.05680226,127.96,127.93,0.05986524]
[1725420393695,3.9086,127.94,127.93,0.05986524]
[1725420394098,0.05680226,127.96,127.93,0.05986524]
[1725420394796,3.96500226,127.96,127.93,0.05986524]
[1725420396301,3.9084,127.95,127.93,0.05986524]
[1725420397303,3.96490226,127.96,127.93,0.05986524]
[1725420397704,0.05680226,127.96,127.93,0.05986524]
[1725420397899,3.9086,127.94,127.93,0.05986524]
[1725420399705,3.9084,127.95,127.93,0.05986524]
[1725420399904,1.50190226,127.96,127.93,0.05986524]
[1725420400399,3.9086,127.95,127.93,0.05986524]
[1725420400907,3.96490226,127.96,127.93,0.05986524]
[1725420402509,3.96490226,127.96,127.93,3.96876524]
[1725420402900,3.96490226,127.96,127.93,0.05986524]
[1725420406299,3.96490226,127.96,127.93,3.96876524]
[1725420406505,0.05680226,127.96,127.93,0.05986524]
[1725420407003,0.05680226,127.96,127.94,24.03]
[1725420408113,0.05680226,127.96,127.95,3.9083]
[1725420409513,0.05680226,127.96,127.95,27.9383]
[1725420410308,7.87053081,128.01,127.97,3.9075]
[1725420411221,0.05572068,128.0,127.98,0.05001861]
[1725420412213,3.96252068,128.0,127.98,0.05001861]
[1725420413307,0.05572068,128.0,127.98,0.05001861]
[1725420415116,0.05572068,128.0,127.99,3.9071]
[1725420415709,0.05572068,128.0,127.98,0.05001861]
[1725420416405,0.05572068,128.0,127.98,3.95721861]
[1725420416609,0.05572068,128.0,127.98,0.05001861]
[1725420418012,3.96262068,128.0,127.98,0.05001861]
[1725420419410,3.9071,127.99,127.98,0.05001861]
[1725420420514,3.96252068,128.0,127.98,0.05001861]
[1725420420714,0.05572068,128.0,127.98,0.05001861]
[1725420421712,3.9071,127.99,127.98,0.05001861]
[1725420422106,0.05572068,128.0,127.93,24.03]
[1725420422513,0.05572068,128.0,127.94,3.9086]
[1725420423217,0.05572068,128.0,127.96,0.05423203]
[1725420423814,3.9077,127.97,127.96,0.05423203]
[1725420424015,7.7489119,127.97,127.96,0.05423203]
[1725420425520,3.9085,127.95,127.92,24.03]
[1725420426120,3.9086,127.94,127.92,24.03]
[1725420426427,3.9657195,127.94,127.92,24.08222026]
[1725420427217,0.0571195,127.94,127.92,24.08222026]
[1725420429322,0.0571195,127.94,127.93,3.9089]
[1725420429521,0.0571195,127.94,127.92,24.08222026]
[1725420429918,0.0571195,127.94,127.92,9.66222026]
[1725420431622,3.9658195,127.94,127.92,9.66222026]
[1725420431930,0.0571195,127.94,127.92,9.66222026]
[1725420433134,0.0571195,127.94,127.92,13.57132026]
[1725420433633,0.0571195,127.94,127.92,9.66222026]
[1725420433934,3.9658195,127.94,127.92,9.66222026]
[1725420435229,0.0571195,127.94,127.92,9.66222026]
[1725420435424,0.0571195,127.94,127.93,9.61]
[1725420435931,0.0571195,127.94,127.93,13.5189]
[1725420436821,0.0571195,127.94,127.92,13.57122026]
[1725420437028,0.0571195,127.94,127.92,3.96122026]
[1725420438129,0.0571195,127.94,127.92,0.05222026]
[1725420439536,3.9659195,127.94,127.92,0.05222026]
[1725420440937,0.0571195,127.94,127.92,13.57142026]
[1725420442137,0.0571195,127.94,127.93,13.5189]
[1725420443135,0.0571195,127.94,127.92,0.05222026]
[1725420443539,3.9658195,127.94,127.92,0.05222026]
[1725420446436,3.9089,127.93,127.92,0.05222026]
[1725420446640,9.61,127.92,127.86,9.61]
[1725420446840,1.3701,127.91,127.86,9.61]
[1725420447142,3.91,127.9,127.87,3.9107]
[1725420447533,3.96527096,127.9,127.87,3.96875363]
[1725420447939,0.05527096,127.9,127.89,9.61]
[1725420450737,0.05527096,127.9,127.88,13.5204]
[1725420453441,0.05527096,127.9,127.87,0.05805363]
[1725420453742,9.61,127.88,127.87,0.05805363]
[1725420454042,13.53368578,127.88,127.87,0.05805363]
[1725420454244,17.44418578,127.88,127.87,0.05805363]
[1725420455539,7.83418578,127.88,127.87,0.05805363]
[1725420455740,3.9102,127.89,127.87,0.05805363]
[1725420458445,1.41887096,127.9,127.87,0.05805363]
[1725420458639,25.42887096,127.9,127.87,0.05805363]
[1725420459036,24.01,127.88,127.81,3.9124]
[1725420459236,27.8499139,127.88,127.8,27.96527948]
[1725420459439,3.9112,127.86,127.82,3.9123]
[1725420459741,27.8499139,127.88,127.82,3.9123]
[1725420459943,0.05259752,127.86,127.84,0.05959978]
[1725420460342,3.96389752,127.86,127.84,0.05959978]
[1725420460641,0.05259752,127.86,127.84,0.05959978]
[1725420460844,0.05259752,127.86,127.85,24.01]
[1725420461048,0.05259752,127.86,127.85,3.9114]
[1725420461849,0.05259752,127.86,127.85,27.9214]
[1725420467142,0.05259752,127.86,127.85,3.9114]
[1725420467750,0.05259752,127.86,127.84,3.97109978]
[1725420468850,3.96369752,127.86,127.84,3.97109978]
[1725420469744,0.05259752,127.86,127.84,3.97109978]
[1725420470145,0.05259752,127.86,127.84,0.05959978]
[1725420470344,3.96379752,127.86,127.84,0.05959978]
[1725420473450,0.05259752,127.86,127.84,3.97119978]
[1725420473653,0.05259752,127.86,127.84,0.05959978]
[1725420474551,0.05259752,127.86,127.85,3.9114]
[1725420477757,227.0,127.94,127.84,25.45389978]
[1725420478061,227.0,127.94,127.87,24.01]
[1725420478258,3.9097,127.91,127.87,3.9106]
[1725420478653,0.05902535,127.9,127.88,0.05746669]
[1725420478861,3.9101,127.89,127.88,0.05746669]
[1725420479067,27.99484185,127.89,127.79,1.3737]
[1725420479268,1.3386,127.88,127.79,29.27115025]
[1725420479768,3.9109,127.87,127.83,3.912]
[1725420480070,0.05109169,127.86,127.84,0.05982948]
[1725420480368,3.91585635,127.86,127.84,0.05982948]
[1725420480577,7.82695635,127.86,127.84,0.05982948]
[1725420481861,3.9114,127.85,127.84,0.05982948]
[1725420482058,5.3833,127.85,127.84,0.05982948]
[1725420483570,1.4719,127.85,127.84,0.05982948]
[1725420484476,7.82705635,127.86,127.84,0.05982948]
[1725420487279,0.05109169,127.86,127.84,0.05982948]
[1725420488378,0.05109169,127.86,127.85,3.9114]
[1725420490473,0.05109169,127.86,127.85,7.85720785]
[1725420491075,1.4647,127.91,127.88,3.9103]
[1725420491574,5.3742,127.91,127.88,3.9103]
[1725420491967,5.43401649,127.91,127.88,3.96404131]
[1725420492381,1.52451649,127.91,127.88,3.96404131]
[1725420492686,1.52451649,127.91,127.89,3.9101]
[1725420493072,5.43411649,127.91,127.88,0.05374131]
[1725420494079,5.43411649,127.91,127.88,3.96404131]
[1725420498178,3.9099,127.9,127.88,0.05374131]
[1725420502978,3.9101,127.89,127.88,0.05374131]
[1725420503174,13.5101,127.89,127.88,0.05374131]
[1725420503681,17.4749272,127.89,127.88,0.05374131]
[1725420505680,13.5648272,127.89,127.81,1.4112]
[1725420505887,13.5648272,127.89,127.81,11.0112]
[1725420505888,9.6,127.88,127.81,11.0112]
[1725420506185,9.6,127.88,127.77,1.362]
[1725420506484,3.9112,127.86,127.82,3.9121]
[1725420506688,0.05099105,127.85,127.83,0.0556545]
[1725420507683,3.96249105,127.85,127.83,0.0556545]
[1725420509278,0.05099105,127.85,127.83,0.0556545]
[1725420511388,3.96239105,127.85,127.83,0.0556545]
[1725420515091,0.05099105,127.85,127.83,0.0556545]
[1725420518090,0.05099105,127.85,127.83,3.9676545]
[1725420519292,3.96239105,127.85,127.83,0.0556545]
[1725420520493,0.05099105,127.85,127.83,0.0556545]
[1725420521188,0.05099105,127.85,127.83,3.9674545]
[1725420522196,0.05099105,127.85,127.84,3.9117]
[1725420522487,0.05099105,127.85,127.84,13.5117]
[1725420526787,0.05099105,127.85,127.84,3.9117]
[1725420528093,3.96239105,127.85,127.83,3.9675545]
[1725420528296,0.05099105,127.85,127.83,3.9675545]
[1725420529898,0.05099105,127.85,127.84,3.9117]
[1725420533504,0.05099105,127.85,127.84,13.5117]
[1725420536002,0.05099105,127.85,127.84,3.9117]
[1725420543910,0.05099105,127.85,127.83,0.0556545]
[1725420545307,0.05099105,127.85,127.83,3.9674545]
[1725420545805,3.96239105,127.85,127.83,3.9674545]
[1725420546116,0.05099105,127.85,127.83,0.0556545]
[1725420546412,0.05099105,127.85,127.84,13.5117]
[1725420558816,0.05099105,127.85,127.84,3.9117]
[1725420563427,0.05099105,127.85,127.83,0.0556545]
[1725420564135,3.96239105,127.85,127.83,0.0556545]
[1725420567522,0.05099105,127.85,127.83,3.9675545]
[1725420568535,0.05099105,127.85,127.84,13.5117]
[1725420573540,5.28660301,127.92,127.89,3.9101]
[1725420573740,1.4068,127.92,127.89,3.9101]
[1725420574638,1.46078502,127.92,127.89,3.97002551]
[1725420575436,5.37018502,127.92,127.89,3.97002551]
[1725420583646,0.05398502,127.92,127.9,3.9098]
[1725420583843,0.05398502,127.92,127.9,9.6]
[1725420584039,0.05398502,127.92,127.91,9.6]
[1725420584243,0.05398502,127.92,127.91,13.5095]
[1725420593843,8.0776,127.98,127.95,3.9082]
[1725420594845,8.13165438,127.98,127.95,3.96608396]
[1725420595951,12.12642573,127.98,127.95,3.96608396]
[1725420597054,3.908,127.96,127.95,0.05788396]
[1725420600252,9.6,127.96,127.87,2.8729]
[1725420600557,9.6,127.94,127.87,9.6]
[1725420600759,9.6,127.94,127.89,3.91]
[1725420601056,1.4399,127.93,127.88,9.6]
[1725420601251,0.05746173,127.92,127.89,9.65275172]
[1725420601646,0.05746173,127.92,127.91,13.5094]
[1725420602953,0.05746173,127.92,127.91,3.9094]
[1725420603147,0.05746173,127.92,127.9,13.5097]
[1725420604061,0.05746173,127.92,127.91,3.9095]
[1725420605662,0.05746173,127.92,127.91,13.5095]
[1725420608362,0.05746173,127.92,127.91,3.9095]
[1725420608563,0.05746173,127.92,127.9,3.9096]
[1725420608762,3.9095,127.91,127.89,0.05275172]
[1725420608966,0.05746173,127.92,127.89,0.05275172]
[1725420610362,0.05746173,127.92,127.9,3.9098]
[1725420610864,0.05746173,127.92,127.9,13.5098]
[1725420611860,0.05746173,127.92,127.9,3.9098]
[1725420613058,0.05746173,127.92,127.91,3.9095]
[1725420619865,0.05746173,127.92,127.89,9.65275172]
[1725420620055,3.83615866,127.91,127.89,0.05275172]
[1725420620261,5.18455866,127.91,127.89,0.05275172]
[1725420620457,9.09425866,127.91,127.89,0.05275172]
[1725420620967,5.18455866,127.91,127.89,0.05275172]
[1725420622466,3.9098,127.9,127.89,0.05275172]
[1725420624369,5.258,127.91,127.89,0.05275172]
[1725420624766,0.05746173,127.92,127.89,9.65275172]
[1725420624972,3.96676173,127.92,127.89,13.56275172]
[1725420626488,3.9095,127.91,127.89,9.65275172]
[1725420628383,3.9095,127.91,127.89,0.05275172]
[1725420630986,3.9098,127.9,127.89,0.05275172]
[1725420631991,9.6,127.9,127.83,9.6]
[1725420632576,3.9112,127.86,127.83,13.5118]
[1725420632782,3.98561672,127.86,127.83,9.6]
[1725420632986,9.65016257,127.86,127.83,0.05270571]
[1725420633281,11.0391,127.85,127.78,3.9133]
[1725420633483,9.6,127.83,127.78,3.9133]
[1725420633785,7.79056647,127.82,127.78,3.9133]
[1725420634084,7.79056647,127.82,127.78,13.5133]
[1725420634278,0.05040157,127.81,127.79,0.05025397]
[1725420634483,0.05040157,127.81,127.79,0.05019834]
[1725420636289,3.96320157,127.81,127.79,0.05019834]
[1725420636483,0.05040157,127.81,127.79,0.05019834]
[1725420636786,0.05040157,127.81,127.8,9.6]
[1725420637188,0.05040157,127.81,127.79,9.65019834]
[1725420638487,3.9129,127.8,127.79,0.05019834]
[1725420638697,9.6,127.8,127.73,9.6]
[1725420638883,9.6,127.79,127.73,9.6]
[1725420639085,3.914,127.77,127.73,13.5148]
[1725420639587,3.9141,127.76,127.73,13.5148]
[1725420639794,3.96772172,127.76,127.73,13.57362089]
[1725420640093,3.96772172,127.76,127.73,0.05882089]
[1725420641092,0.05362172,127.76,127.73,3.97382089]
[1725420644794,3.96772172,127.76,127.73,0.05882089]
[1725420645093,7.97407096,127.76,127.73,0.05882089]
[1725420645294,3.9146,127.75,127.73,0.05882089]
[1725420645891,3.99452457,127.76,127.73,0.05882089]
[1725420646382,1.335,127.75,127.73,0.05882089]
[1725420646586,3.9147,127.74,127.73,0.05882089]
[1725420646787,1.335,127.75,127.73,0.05882089]
[1725420646995,5.2496,127.75,127.73,0.05882089]
[1725420647194,1.335,127.75,127.73,0.05882089]
[1725420647492,5.2497,127.75,127.73,0.05882089]
[1725420650005,3.9147,127.74,127.73,0.05882089]
[1725420651905,3.9154,127.72,127.69,3.9162]
[1725420652199,28.185,127.75,127.66,24.06]
[1725420652509,3.9156,127.72,127.68,3.9165]
[1725420653003,0.04966013,127.71,127.69,0.05103139]
[1725420653406,0.04966013,127.71,127.69,3.96723139]
[1725420654800,0.04966013,127.71,127.7,3.916]
[1725420655494,0.04966013,127.71,127.7,27.976]
[1725420656104,10.6387,127.82,127.7,24.06]
[1725420656305,34.6987,127.82,127.73,24.06]
[1725420656506,2.8107,127.82,127.76,24.06]
[1725420656808,3.92684021,127.83,127.78,24.06]
[1725420657006,1.4804,127.85,127.78,24.06]
[1725420657209,3.96478785,127.83,127.8,0.05103173]
[1725420657698,3.99366741,127.83,127.8,3.96393173]
[1725420657900,0.05278785,127.83,127.8,3.96393173]
[1725420659203,0.05278785,127.83,127.8,24.11103173]
[1725420660206,0.05278785,127.83,127.82,3.9123]
[1725420663703,0.05278785,127.83,127.8,0.05103173]
[1725420664394,3.9126,127.81,127.8,0.05103173]
[1725420665004,3.9124,127.82,127.8,0.05103173]
[1725420665402,24.11278785,127.83,127.8,0.05103173]
[1725420665602,3.9126,127.81,127.8,0.05103173]
[1725420666200,24.11278785,127.83,127.8,0.05103173]
[1725420666201,0.05278785,127.83,127.8,0.05103173]
[1725420666702,0.05278785,127.83,127.8,3.96373173]
[1725420669110,3.9123,127.82,127.8,0.05103173]
[1725420670411,230.98327687,127.93,127.8,48.17103173]
[1725420670614,230.98327687,127.93,127.83,24.06]
[1725420670814,3.98327687,127.93,127.85,24.06]
[1725420671110,3.9095,127.92,127.85,24.06]
[1725420671302,24.06,127.93,127.85,24.06]
[1725420671502,0.0564584,127.9,127.88,0.05615825]
[1725420671810,3.91749007,127.9,127.88,0.05615825]
[1725420672004,0.0564584,127.9,127.88,0.05615825]
[1725420672504,0.0564584,127.9,127.88,24.11615825]
[1725420673104,0.0564584,127.9,127.89,3.9101]
[1725420674414,0.0564584,127.9,127.88,0.05615825]
[1725420675617,0.0564584,127.9,127.88,3.96655825]
[1725420676302,0.0564584,127.9,127.88,0.05615825]
[1725420677709,3.9101,127.89,127.88,0.05615825]
[1725420679814,3.911,127.87,127.81,31.4685]
[1725420680214,3.911,127.87,127.83,3.9118]
[1725420680512,3.9111,127.86,127.83,3.9118]
[1725420680715,0.05541504,127.86,127.83,0.05665567]
[1725420680916,3.90770398,127.85,127.83,0.05665567]
[1725420681913,3.9117,127.84,127.83,0.05665567]
[1725420682415,3.9115,127.85,127.83,0.05665567]
[1725420684114,3.97094147,127.86,127.83,0.05665567]
[1725420685519,3.9117,127.84,127.83,0.05665567]
[1725420692219,33.96552643,127.86,127.78,3.9135]
[1725420692420,37.878,127.85,127.78,3.9135]
[1725420692626,3.9126,127.82,127.78,3.9135]
[1725420692822,3.99703555,127.81,127.78,3.9135]
[1725420693224,4.04656397,127.81,127.78,3.97074253]
[1725420693425,0.04952842,127.81,127.79,3.9131]
[1725420696931,0.04952842,127.81,127.78,3.97054253]
[1725420697230,3.96222842,127.81,127.78,3.97054253]
[1725420699528,0.04952842,127.81,127.78,0.05724253]
[1725420699829,24.08952842,127.81,127.78,0.05724253]
[1725420700128,28.23242842,127.81,127.78,0.05724253]
[1725420701023,28.23242842,127.81,127.7,2.8155]
[1725420701024,24.04,127.8,127.71,24.04]
[1725420701427,3.9144,127.76,127.72,3.9151]
[1725420702033,0.05350665,127.75,127.73,0.05003775]
[1725420702224,7.85350121,127.75,127.73,0.05003775]
[1725420702533,3.96800665,127.75,127.73,0.05003775]
[1725420702925,7.82767096,127.75,127.73,0.05003775]
[1725420703822,3.9147,127.74,127.73,0.05003775]
[1725420704331,5.2888,127.74,127.73,0.05003775]
[1725420706227,3.9158,127.71,127.67,3.9168]
[1725420707234,0.05408946,127.7,127.67,3.9168]
[1725420708334,3.97008946,127.7,127.66,6.6943]
[1725420708631,3.97008946,127.7,127.66,3.9171]
[1725420709231,0.05408946,127.7,127.67,3.9169]
[1725420710126,0.05408946,127.7,127.68,24.04]
[1725420710636,0.05408946,127.7,127.69,3.9163]
[1725420710934,3.85966431,127.75,127.68,24.09408586]
[1725420711137,3.9149,127.74,127.7,27.9558]
[1725420711339,3.96507655,127.73,127.7,27.9558]
[1725420711525,1.3614,127.77,127.7,27.9558]
[1725420712136,0.05226574,127.75,127.72,0.05017206]
[1725420712334,3.9149,127.74,127.72,0.05017206]
[1725420712638,0.05226574,127.75,127.72,0.05017206]
[1725420712829,3.86051601,127.74,127.72,0.05017206]